Cogmind - Beta 15 @@@ ROGUE MODE // 2025.10.15 @ 23:20:34 Player: Auto Result: Self-destructed Performance ------------- Evolutions (1) 500 Regions Visited (2) 400 Robots Destroyed (40) 200 Value Destroyed (1125) 1125 Prototype IDs (5) 100 Alien Tech Used (0) 0 Bonus (0) 0 TOTAL SCORE: 2325 Bonus ------- None Cogmind --------- Core Integrity 329/400 Matter 280/300 Energy 265/265 System Corruption 0% Temperature Cool (0) Movement Walking (120) Location -9/Materials Parts ------- > --- POWER (1) -------- Reinforced Ion Engine > --- PROPULSION (3) --- Aluminum Leg Aluminum Leg Aluminum Leg > --- UTILITY (2) ------ Medium Storage Unit Hacking Suite > --- WEAPON (3) ------- Field Laser Field Laser Datajack > --- INVENTORY (10) --- Ion Engine Aluminum Leg Aluminum Leg Aluminum Leg Aluminum Leg Heat Sink Improved Heat Sink Small Storage Unit Grenade Launcher Mining Laser Peak State ------------ > --- POWER ------------ Reinforced Ion Engine > --- PROPULSION ------- Aluminum Leg Aluminum Leg Aluminum Leg > --- UTILITY ---------- Medium Storage Unit Hacking Suite > --- WEAPON ----------- Field Laser Field Laser Datajack > --- INVENTORY -------- Ion Engine Aluminum Leg Aluminum Leg Aluminum Leg Heat Sink Improved Heat Sink Small Storage Unit Grenade Launcher Mining Laser [Rating: 17] Favorites ----------- Power Ion Engine Engine Ion Engine Propulsion Aluminum Leg Treads Light Treads Leg Aluminum Leg Utility Hacking Suite Device Heat Sink Storage Small Storage Unit Processor Targeting Computer Hackware Hacking Suite Weapon Assault Rifle Energy Gun Field Laser Ballistic Gun Assault Rifle Special Weapon Mining Laser Special Melee Weapon Datajack Build | -11 -10 -9 ------- Run | Yrd Mat Mat Slots Evolved 2 | . . 2 Power . | . . . Propulsion 1 | . . 1 Utility . | . . . Weapon 1 | . . 1 Parts Attached 39 | 7 16 16 Power 8 | 1 4 3 Engine 8 | 1 4 3 Core . | . . . Reactor . | . . . Propulsion 16 | 3 3 10 Treads 1 | 1 . . Leg 15 | 2 3 10 Wheel . | . . . Hover . | . . . Flight . | . . . Utility 5 | 1 3 1 Device 1 | . 1 . Storage 2 | 1 . 1 Processor 1 | . 1 . Hackware 1 | . 1 . Protection . | . . . Artifact . | . . . Weapon 10 | 2 6 2 Energy Gun 3 | . 1 2 Energy Cannon . | . . . Ballistic Gun 5 | 2 3 . Ballistic Cannon . | . . . Launcher . | . . . Special Weapon 1 | . 1 . Impact Weapon . | . . . Slashing Weapon . | . . . Piercing Weapon . | . . . Special Melee Weapon 1 | . 1 . Unidentified Prototypes . | . . . Parts Lost 4 | . 3 1 Power 2 | . 2 . Propulsion . | . . . Utility . | . . . Weapon 2 | . 1 1 Highest Loss Streak 2 | . 2 1 To Critical Strikes . | . . . Average Backups 7 | 2 7 8 Power . | . . . Propulsion 3 | 1 3 2 Utility 1 | . . 2 Weapon 2 | . 2 2 Tool/Special . | . . . Unused Backups 10 | . 7 3 Power . | . . . Propulsion 7 | . 6 1 Utility 1 | . . 1 Weapon 2 | . 1 1 Tool/Special . | . . . Average Slot Usage (%) 97 | . 97 98 Engine 12 | . 13 10 Leg 29 | . 28 32 Storage 12 | . 14 11 Processor 2 | . 4 . Hackware 8 | . 6 11 Energy Gun 7 | . 3 11 Ballistic Gun 16 | . 22 8 Special Melee Weapon 5 | . 1 11 Peak Build Rating 17 | 6 9 17 Average Rating 10 | 4 7 14 On Entrance 5 | . 6 9 Naked Turns . | . . . Heaviest Build 27 | 12 15 27 Greatest Support 30 | 20 20 30 Greatest Overweight (x) 3 | . . 3 Average Overweight (x) . | . . . Largest Inventory Capacity 10 | 8 8 10 Average Capacity 8 | 7 8 9 Most Carried 10 | 6 8 10 Average Carried 7 | 2 7 8 Final Capacity 10 | 8 8 10 Final Carried 10 | 6 8 10 Class Distribution -------------------- 50% | Scavenger-Mutant 49% | Mutant Dominant Class ---------------- Mutant | -10/Materials Scavenger-Mutant | -9/Materials Resources | -11 -10 -9 ----------- Run | Yrd Mat Mat Matter Collected 1134 | 300 422 412 Remotely . | . . . Salvage Created 1459 | 67 592 800 Parts 73 | 2 35 36 Haulers Intercepted . | . . . Recyclers Shooed 2 | . . 2 Parts Field Recycled . | . . . Retrieved Matter . | . . . Parts Self-Destructed . | . . . Prevented . | . . . Kills | -11 -10 -9 ------- Run | Yrd Mat Mat Combat Hostiles Destroyed 32 | . 16 16 Guns 32 | . 16 16 Classes Destroyed 8 | 1 4 3 Worker 1 | . . 1 Recycler 2 | 1 . 1 Operator 3 | . 2 1 Watcher 2 | . 2 . Swarmer 6 | . 6 . Grunt 22 | . 10 12 Brawler 2 | . . 2 Sentry 2 | . . 2 Best Kill Streak 6 | 1 6 4 Combat Bots Only 6 | . 6 3 Max Kills in Single Turn 2 | 1 1 2 Gunslinging . | . . . Exploded . | . . . Melee . | . . . Uniques/NPCs Destroyed . | . . . Combat | -11 -10 -9 -------- Run | Yrd Mat Mat Hostile Shots Fired 164 | . 96 68 Missed 50 | . 33 17 Hits 114 | . 63 51 Projectile 114 | . 63 51 Critical Strikes 3 | . . 3 Damage Taken 1377 | . 735 642 Core 227 | . 156 71 Absorbed by Shields . | . . . Regen/Repaired (Parts) 114 | . 114 . Core Remaining (%) 68 | 100 37 . Volleys Fired 135 | 5 70 60 Largest 2 | 2 2 2 Hottest 126 | 40 100 126 Shots Fired 258 | 10 137 111 Gun 250 | 10 135 105 Cannon . | . . . Launcher . | . . . Special 8 | . 2 6 Kinetic 155 | 10 102 43 Thermal 103 | . 35 68 Explosive . | . . . Electromagnetic . | . . . Robot Hit Streak 27 | 5 27 22 Robot Miss Streak 6 | 3 6 3 Penetration Max . | . . . Secondary Targets 4 | . 3 1 Max Gunslinging Chain 1 | . 1 1 Shots Hit Robots 192 | 7 99 86 Core Hits 65 | 2 34 29 Critical Kills 1 | . . 1 Critical Parts Destroyed . | . . . Critical Strikes 8 | . 5 3 Burn 7 | . 5 2 Destroy 1 | . . 1 Melee Attacks 18 | . 7 11 Impact . | . . . Slashing . | . . . Piercing . | . . . Sneak Attacks 14 | . 7 7 Combat Hostiles . | . . . Follow-up Attacks . | . . . Damage Inflicted 2366 | 89 1056 1221 Guns 2365 | 89 1055 1221 Cannons . | . . . Explosions . | . . . Melee . | . . . Ramming 1 | . 1 . Kinetic 1199 | 89 734 376 Thermal 1166 | . 321 845 Explosive . | . . . Electromagnetic . | . . . Impact . | . . . Slashing . | . . . Piercing . | . . . Highest Corruption 1 | . 1 . Average Corruption 1 | . 1 . Corruption Purged . | . . . Corruption Blocked . | . . . Effects 4 | . 4 . Message Errors 2 | . 2 . Matter Fused 2 | . 2 . Overload Shots . | . . . Overflow Damage . | . . . Projectiles . | . . . Explosions . | . . . Melee . | . . . Knockbacks . | . . . Impact . | . . . Kinetic . | . . . Secondary . | . . . Self-Inflicted Damage . | . . . Shots . | . . . Rammed . | . . . Targets Rammed 2 | . 2 . Kicked 2 | . 2 . Crushed . | . . . Highest Temperature 381 | . 131 381 Average Temperature 66 | . 40 78 Received Heat Transfer 651 | . 315 336 Effects 2 | . . 2 Shutdowns 1 | . . 1 Energy Bleed 1 | . . 1 Siege Activations . | . . . Martial Activations . | . . . Shielding Activations . | . . . Robots Disrupted . | . . . Combat Hostiles . | . . . Robots Corrupted . | . . . Combat Hostiles . | . . . Parts Fried . | . . . Impact Corruptions . | . . . Robots Melted . | . . . Combat Hostiles . | . . . Parts Melted 4 | . 4 . Heat Transferred 3293 | . 1332 1961 Parts Sabotaged . | . . . Parts Stolen . | . . . Parts Stripped . | . . . Power Chain Reactions . | . . . Alert | -11 -10 -9 ------- Run | Yrd Mat Mat Maximum Alert Level 1 | . 1 . Low Security (%) 99 | 100 99 100 Level 1 . | . . . Level 2 . | . . . Level 3 . | . . . Level 4 . | . . . Level 5 . | . . . High Security . | . . . Max Security . | . . . Peak Influence 206 | 5 206 199 Initial 1 | . . 1 Average 48 | . 36 69 Influence Increases 1085 | 5 558 522 Destroy 0b10 Robot/C 640 | . 320 320 Destroy 0b10 Robot/NC 40 | 5 20 15 Destroy Leader 144 | . 74 70 Successful Hack 43 | . 38 5 Disable Machine 15 | . 15 . Destroy Structure 8 | . 1 7 Partial Spotted 15 | . . 15 Lose Combat Pursuer 180 | . 90 90 Influence Decreases 893 | 5 554 334 Entered New Map 3 | . . 3 Time Decay 728 | 5 402 321 Lost Part 40 | . 30 10 Purge Threat 122 | . 122 . Squads Dispatched 5 | . 3 2 Investigation 2 | . 2 . Extermination . | . . . Reinforcement 3 | . 1 2 Assault . | . . . Garrison . | . . . Intercept . | . . . Searches Triggered . | . . . Construction Impeded . | . . . Haulers Reinforced . | . . . Active Scanning Responses . | . . . Cargo Convoy Interrupts . | . . . Stealth | -11 -10 -9 --------- Run | Yrd Mat Mat Distress Signals 2 | . 1 1 Communications Jammed . | . . . Distress Signals . | . . . Times Spotted 60 | . 34 26 Peak Tracking Total 7 | . 7 5 Tactical Retreats 7 | . 3 4 Traps | -11 -10 -9 ------- Run | Yrd Mat Mat Traps Triggered 5 | . 1 4 Indirectly . | . . . Trap Hack Attempts . | . . . Triggered . | . . . Disarmed . | . . . Reprogrammed . | . . . Reused . | . . . Traps Extracted . | . . . Installed . | . . . Triggered . | . . . Machines | -11 -10 -9 ---------- Run | Yrd Mat Mat Machines Disabled 1 | . 1 . Max in Single Turn 1 | . 1 . Machines Repaired . | . . . Machines Dismantled . | . . . Machines Sabotaged . | . . . Overloaded Fab Kills . | . . . Hacking | -11 -10 -9 --------- Run | Yrd Mat Mat Machines Accessed 14 | . 10 4 Terminals 9 | . 7 2 Fabricators . | . . . Repair Stations 1 | . 1 . Recycling Units 4 | . 2 2 Scanalyzers . | . . . Garrison Access . | . . . Total Hacks 56 | . 41 15 Successful 33 | . 25 8 Failed 23 | . 16 7 Catastrophic 2 | . 2 . Database Lockouts . | . . . Manual 35 | . 25 10 Terminals 33 | . 26 7 Fabricators . | . . . Repair Stations 6 | . 6 . Recycling Units 17 | . 9 8 Scanalyzers . | . . . Garrison Access . | . . . Terminal Hacks 8 | . 7 1 Prototype ID Bank 2 | . 2 . Branch Access Points 1 | . 1 . Terminal Index 2 | . 1 1 Alert Level 1 | . 1 . Unreport Threat 1 | . 1 . Locate Traps 1 | . 1 . Fabricator Hacks . | . . . Repair Station Hacks 6 | . 6 . Scan Component 3 | . 3 . Repair 3 | . 3 . Recycling Unit Hacks 4 | . 2 2 Retrieve Components 4 | . 2 2 Scanalyzer . | . . . Garrison Access Hacks . | . . . Unauthorized Hacks 15 | . 10 5 Terminals 8 | . 6 2 Botnet 7 | . 5 2 Operators 1 | . 1 . Fabricators . | . . . Repair Stations . | . . . Recycling Units 7 | . 4 3 Reject 4 | . 2 2 Recyclers 3 | . 2 1 Scanalyzers . | . . . Garrison Access . | . . . Data Cores Recovered 1 | . 1 . Used . | . . . Hacking Detections 11 | . 8 3 Full Trace Events 7 | . 6 1 Feedback Events 1 | . 1 . Corruption 1 | . 1 . Feedback Blocked . | . . . Robot Schematics Acquired . | . . . Robots Built . | . . . Authchips . | . . . Time . | . . . Total Robot Build Rating . | . . . Part Schematics Acquired . | . . . Parts Built . | . . . Authchips . | . . . Time . | . . . Total Part Build Rating . | . . . Parts Repaired 3 | . 3 . Time 78 | . 78 . Parts Recycled . | . . . Recycled Matter . | . . . Retrieved Matter . | . . . Retrieved Components 17 | . 10 7 Parts Scanalyzed . | . . . Part Schematics Acquired . | . . . Parts Damaged . | . . . Bothacking | -11 -10 -9 ------------ Run | Yrd Mat Mat Used RIF Installer . | . . . Robots Hacked 4 | . 2 2 Non-combat 4 | . 2 2 Combat . | . . . Robot Hacks Applied 7 | . 4 3 parse_system 3 | . 2 1 no_distress 1 | . 1 . find_recycling 2 | . 1 1 check_alert 1 | . . 1 Relay Couplers Released . | . . . Fabnet Peak Effective % . | . . . Robots Rewired . | . . . Allies Hacked . | . . . Hacks Repelled . | . . . Allies | -11 -10 -9 -------- Run | Yrd Mat Mat Total Allies . | . . . Largest Group . | . . . Highest-Rated Group . | . . . Highest-Rated Ally . | . . . Total Orders . | . . . Ally Attacks . | . . . Total Damage . | . . . Kills . | . . . Allies Corrupted . | . . . Allies Melted . | . . . Intel | -11 -10 -9 ------- Run | Yrd Mat Mat Active Infowar (turns) . | . . . Robot Analysis Total . | . . . Derelict Logs Recovered . | . . . Drone Launches . | . . . Drone Recoveries . | . . . Exploration | -11 -10 -9 ------------- Run | Yrd Mat Mat Turns Passed 4110 | 121 2277 1712 Spaces Moved 1947 | 80 1210 657 Core 16 | 12 . 4 Treads 6 | 6 . . Legs 1925 | 62 1210 653 Wheels . | . . . Hover . | . . . Flight . | . . . Fastest Speed 50 | 50 120 120 Average Speed 119 | 112 120 120 Slowest Speed 200 | 160 120 200 Overloaded Moves . | . . . Propulsion Burnouts . | . . . Robots Hopped . | . . . Potential Cave-ins . | . . . Cave-ins Triggered . | . . . Exploration Rate (%) 45 | 5 100 32 Regions Visited 2 Branch Regions . Pre-discovered Areas . | . . . Known Exits Taken . | . . . Unknown Exits Taken 2 | 1 1 . Scrap Searched . | . . . Spaces Dug 6 | . . 6 Terrain Destroyed 6 | . . 6 Melee . | . . . Projectile 6 | . . 6 AOE . | . . . Terrain Rammed . | . . . Walls Destroyed . | . . . Machines Disabled . | . . . Actions | -11 -10 -9 --------- Run | Yrd Mat Mat Total 3456 | 97 1906 1453 Wait 1226 | . 555 671 Move 1945 | 79 1209 657 Hop . | . . . Pick Up 41 | 6 22 13 Fast Attach 15 | 6 2 7 Attach 10 | . 3 7 Detach . | . . . Swap 32 | 1 16 15 Drop 32 | . 20 12 Fire 135 | 5 70 60 Melee 18 | . 7 11 Ram . | . . . Kick 2 | . 2 . Crush . | . . . Escape Stasis . | . . . Rewire . | . . . Trap . | . . . Miscellaneous . | . . . Route ------- -11/Scrapyard -10/Materials (discovered 6 exits: *Mat x3 / *Min x2 / [*Sub]) -9/Materials (discovered 1 exit: [*Min]) History --------- Turn | Location | Event 5 | -11/Scrapyard | Discovered new exit (range 15) 122 | -11/Scrapyard | Entered Materials 301 | -10/Materials | Build established: Mutant 571 | -10/Materials | Discovered new exit (range 15) 608 | -10/Materials | Discovered new exit (range 14) 1098 | -10/Materials | Core integrity fell below 50% 1243 | -10/Materials | Discovered new exit (range 7) 1248 | -10/Materials | Discovered new exit (range 11) 1498 | -10/Materials | Discovered new exit (range 16) 1633 | -10/Materials | Build established: Scavenger-Mutant 1826 | -10/Materials | Repaired Med. Laser 1853 | -10/Materials | Repaired Aluminum Leg 1880 | -10/Materials | Repaired Aluminum Leg 1908 | -10/Materials | Discovered new exit (range 14) 2071 | -10/Materials | Identified exit to Mines 2334 | -10/Materials | Build established: Mutant 2399 | -10/Materials | Entered another Materials area 2399 | -9/Materials | Evolved 2 slots: Propulsion x1, Weapon x1 3143 | -9/Materials | Build established: Scavenger-Mutant 4015 | -9/Materials | Discovered new exit (range 6) 4111 | -9/Materials | Self-destructed Last Messages --------------- Trojan loaded successfully. Testing... Ejection routine running. 03971_ R-06 Scavenger inserts Lgt. Treads into recycling unit. 03971_ Lgt. Treads discarded by recycling unit. 03974_ R-06 Scavenger inserts Ion Engine into recycling unit. 03974_ Ion Engine discarded by recycling unit. 03977_ R-06 Scavenger inserts Sml. Laser into recycling unit. 03977_ Sml. Laser discarded by recycling unit. 03980_ R-06 Scavenger inserts Aluminum Leg into recycling unit. 03980_ Aluminum Leg discarded by recycling unit. 04015_ EXIT=FOUND 04034_ Critical hit (Burn: +37). 04055_ Y-45 Defender destroyed. 04057_ Power failure, Rnf. Ion Engine shutdown. 04060_ Overheating: Energy bleed (-31). 04062_ ALERT: Hostiles spotted, dispatching reinforcements to Terminal M003. 04066_ U-05 Engineer builds a Door. 04071_ K-01 Serf collects debris. Map ----- +----------------------------------------------------+ | ??????????? % | | ???????? ??? ###+############## ###+### | | ???????? ? # #???##########?#% # | | ????????? # #???# #?# # | | ????????? # #???# ""#?#!! # | | ?????????""" """" # #???# T"###!! # | | ?????????""" """" #+############# ""###! # | | ?????# """" """" # ##" " | | ?????# ! + """" ###! # | | ???? % # """" %#?##### | | ????????######## r##+#########+#+# """" =#?????? | | ????????????#### ## """ ## # #?????? | | ????????????#" #="Y" ## """ ### ######?????? | | ????????????#"" # *== ## """ #?######???????? | | ????????????#!! #=[/! ## """ #???##"#######?? | | ????????????#"" < # !## #???# #?? | | ????????????#|| # ## #???# ### | | ????????????#"" ######### #???# """ ## | | ????????????#" #?###???# ! #???# """ ## | | ????????????#### #### ############??# """ ## | | ???????????##### # [= + ???+ """ ## | | ??????????# ^ +% = #????# """ ## | | ??????????+ # "" #????# ## | | ??????????# # """#????+ ## | | ??????????# """ # S"## ??#####+###### | | ??????????# ^""" # @ ## #### % [ | | ??????????# """ #####+######### #### | | ??????????# #???# #???????# #??? | | ??????????# #???# #???????# #??? | | ??????????#?? """ ????# #???????# #??? | | ????????????? """ ????#r#???????# #??? | | ???????????????"" ???? ????? #??? | | ???????????????? ???? ???? !! #??? | | ???????????????? ???? ???? !! #??? | | ????????????????#/#????###????? +??? | | ????????????????? ????????????? #??? | | ????????????????????????????????######### ^ #??? | | ????????????????????????????????????????## ^ ##??? | | ?????????????????????????????????????????# #???? | | ?????????????????????????????????????????# ????? | | ?????????????????????????????????????????+ ????? | | ?????????????????????????????????????????# ????? | | ?????????????????????????????????????????# ????? | | ?????????????????????????????????????????? ????? | | ?????????????????????????????????????????????????? | | ?????????????????????????????????????????????????? | | ?????????????????????????????????????????????????? | | ?????????????????????????????????????????????????? | | ?????????????????????????????????????????????????? | | ?????????????????????????????????????????????????? | +----------------------------------------------------+ Best States ------------- Heat Dissipation 35 Energy Generation 12 Energy Capacity 265 Matter Stores 300 Matter Capacity 300 Sight Range 16 Terrain Scan Density 10 Evasion (%) 55 Targeting Accuracy 5 Recoil Reduction 1 Offensive Hacking 10 Item Schematics ----------------- None Robot Schematics ------------------ None Fabricated ------------ Nothing Repaired ---------- Med. Laser | 37% | -10/Materials Aluminum Leg | 55% | -10/Materials Aluminum Leg | 66% | -10/Materials Alien Tech Used ----------------- None Achievements -------------- None Challenges ------------ None Game ------ Seed SystemStealthDesublimator Manual? 0 Play Time 00:35:14 Cumulative 60.5 hours Start 2025.10.15 @ 22:44:41 End 2025.10.15 @ 23:20:34 Sessions 1 Manual Loads 0 Difficulty Rogue Special Mode None Game No. 42 Rogue 17 Adventurer 25 Explorer 0 Win Type - Total 0 Types 0/0/0/0/0/0/0/0/0/0 Lore% 17 Gallery% 30 Achievement% 29 Wizard Run 0 Options --------- Layout 0 ASCII 0 Keyboard 0 Movement Mouse Keybinds 0 Fullscreen 2 Font 18/SmallcapsGlow Map View 76x50 Zoom Use 0% Tactical HUD 1 Map Filters NONE Filters NONE Steam 1 RUN: 9cad6dc9-5642-4972-83f8-6c3fe059a2c3